fUST/lending_fUST_20260331
["ID","MTS","AMOUNT","RATE_DAILY","PERIOD"]
[419158802,1774965040888,-4281.38190971,0.00024898,2]
[419158804,1774965040897,-4281.38190971,0.00024898,2]
[419158806,1774965040906,-80811.28022639,0.00024899,2]
[419158808,1774965040918,-10577.9862083,0.00024899,2]
[419158810,1774965040930,-988.23170697,0.00024899,2]
[419158823,1774965041045,-353.435,0.00024899,2]
[419158829,1774965041100,-2357.72519592,0.00024899,2]
[419158991,1774965043575,-650.578,0.00023345,2]
[419158992,1774965043585,-184.176,0.00023345,2]
[419158993,1774965043596,-81624.90544092,0.00024899,2]
[419158994,1774965043607,-666.48382913,0.00024899,2]
[419159012,1774965048055,-2893.55742354,0.00024899,2]
[419159013,1774965048108,-3256.97868864,0.00024899,2]
[419159014,1774965048120,-77723.53174461,0.00024899,2]
[419159032,1774965114247,600.29618625,0.00035911,120]
[419159033,1774965136533,500.0,0.00035911,120]
[419159034,1774965147306,368.4,0.00035911,120]
[419159036,1774965263822,1311.30900227,0.00035911,120]
[419159043,1774965972777,2049.54226102,0.0003599,120]
[419159051,1774966038475,250.0,0.0003599,120]
[419159063,1774966232335,-1202.43828814,7.599e-05,2]
[419159194,1774966238567,-1744.8050037,7.599e-05,2]
[419159195,1774966238578,-2947.24329184,7.599e-05,2]
[419159196,1774966238587,-2947.24329184,7.599e-05,2]
[419159197,1774966238596,-2947.24329184,7.599e-05,2]
[419159198,1774966238606,-2947.24329184,7.599e-05,2]
[419159199,1774966238616,-2947.24329184,7.599e-05,2]
[419159200,1774966238626,-2947.24329184,7.599e-05,2]
[419159201,1774966238636,-2947.24329184,7.599e-05,2]
[419159202,1774966238645,-2947.24329184,7.599e-05,2]
[419159203,1774966238655,-2947.24329184,7.599e-05,2]
[419159204,1774966238664,-2947.24329184,7.599e-05,2]
[419159205,1774966238674,-2947.24329184,7.599e-05,2]
[419159206,1774966238684,-2947.24329184,7.599e-05,2]
[419159207,1774966238693,-2947.24329184,7.599e-05,2]
[419159208,1774966238703,-192694.14813737,7.6e-05,2]
[419159209,1774966238712,-1407.84297751,0.0001,2]
[419159210,1774966238721,-2904.63041311,0.0001,2]
[419159211,1774966238732,-291.36124221,0.0001,2]
[419159213,1774966238741,-1000.0,0.00013699,2]
[419159215,1774966238751,-599.91400027,0.000149,2]
[419159217,1774966238761,-1027.4214906,0.00015,2]
[419159219,1774966238770,-3055.849822,0.00015,2]
[419159221,1774966238780,-152.19186827,0.00015,2]
[419159223,1774966238789,-161.27651481,0.00015,2]
[419159224,1774966238798,-853.4170793,0.000158,2]
[419159225,1774966238808,-217.73539914,0.00016,2]
[419159226,1774966238817,-300.0,0.00016115,2]
[419159227,1774966238827,-300.0,0.00016115,2]
[419159228,1774966238836,-300.0,0.00016115,2]
[419159229,1774966238846,-300.0,0.00016115,2]
[419159230,1774966238855,-300.0,0.00016115,2]
[419159231,1774966238865,-300.0,0.00016115,2]
[419159232,1774966238875,-300.0,0.00016115,2]
[419159233,1774966238884,-300.0,0.00016115,2]
[419159234,1774966238894,-300.0,0.00016115,2]
[419159235,1774966238903,-300.0,0.00016115,2]
[419159236,1774966238913,-300.0,0.00016115,2]
[419159237,1774966238923,-300.0,0.00016115,2]
[419159238,1774966238932,-300.0,0.00016115,2]
[419159239,1774966238942,-300.0,0.00016115,2]
[419159240,1774966238952,-300.0,0.00016115,2]
[419159241,1774966238961,-200.0,0.00017,2]
[419159242,1774966238971,-2157.03801605,0.000176,2]
[419159243,1774966238980,-508.68881194,0.00018,2]
[419159244,1774966238990,-270.83333333,0.00023,2]
[419159245,1774966238999,-150.505,0.00023345,2]
[419159246,1774966239010,-150.776,0.00023345,2]
[419159247,1774966239020,-282.421,0.00023345,2]
[419159248,1774966239030,-600.0,0.00023811,10]
[419159249,1774966239039,-500.95495457,0.00023973,2]
[419159250,1774966239049,-8676.0,0.00024,2]
[419159251,1774966239058,-900.16182946,0.00024301,2]
[419159252,1774966239068,-194.411,0.00024303,6]
[419159253,1774966239077,-708.67525949,0.000245,79]
[419159254,1774966239087,-1828.40677221,0.000245,79]
[419159255,1774966239096,-1466.19446625,0.00024598,2]
[419159256,1774966239105,-1000.0,0.000246,2]
[419159257,1774966239116,-1000.0,0.000246,3]
[419159258,1774966239125,-506.39284009,0.00024673,2]
[419159259,1774966239240,-500.0,0.00024673,2]
[419159260,1774966239256,-500.54244637,0.00024673,2]
[419159261,1774966239267,-500.0,0.00024673,2]
[419159262,1774966239276,-500.0,0.00024673,2]
[419159263,1774966239286,-150.5595,0.00024697,2]
[419159264,1774966239295,-1202989.82313203,0.00024698,2]
[419159265,1774966239307,-1093.29531588,0.00024698,2]
[419159266,1774966239319,-5186.01910437,0.00024698,2]
[419159267,1774966239334,-21670.83274464,0.00024698,2]
[419159268,1774966239346,-202768.60995433,0.00024698,2]
[419159269,1774966239357,-5382.06751572,0.00024698,2]
[419159283,1774966241147,-759.30097274,0.00024698,2]
[419159284,1774966241159,-2875.26254868,0.00024698,2]
[419159285,1774966241201,-18859.83481046,0.00024698,2]
[419159306,1774966247165,-184.0,0.00023475,2]
[419159307,1774966247175,-1933.33197332,0.00024698,2]
[419159308,1774966247220,-15923.66375187,0.00024698,2]
[419159309,1774966247592,-1465.33975539,0.00024698,2]
[419159310,1774966247604,-10325.23161764,0.00024698,2]
[419159318,1774966337865,250.0,0.0003599,120]
[419159319,1774966368867,-5000.0,7.523e-05,8]
[419159320,1774966450769,5000.0,0.0003599,120]
[419159326,1774967140763,323.0,0.00035937,120]
[419159461,1774967440689,-300.0,7.75e-05,2]
[419159462,1774967440699,-173.57376399,7.75e-05,2]
[419159463,1774967440743,-126.42623601,7.75e-05,2]
[419159464,1774967440752,-274.18426379,7.75e-05,2]
[419159465,1774967440799,-25.81573621,7.75e-05,2]
[419159466,1774967440808,-300.0,7.75e-05,2]
[419159467,1774967440820,-300.0,7.75e-05,2]
[419159468,1774967440830,-300.0,7.75e-05,2]
[419159469,1774967440839,-300.0,7.75e-05,2]
[419159470,1774967440849,-300.0,7.75e-05,2]
[419159471,1774967440859,-300.0,7.75e-05,2]
[419159472,1774967440868,-300.0,7.75e-05,2]
[419159473,1774967440877,-300.0,7.75e-05,2]
[419159474,1774967440886,-300.0,7.75e-05,2]
[419159475,1774967440896,-300.0,7.75e-05,2]
[419159476,1774967440906,-300.0,7.75e-05,2]
[419159477,1774967440917,-300.0,7.75e-05,2]
[419159478,1774967440926,-600.0,7.75e-05,2]
[419159479,1774967440936,-720.0,8.525e-05,2]
[419159480,1774967440947,-864.0,9.377e-05,2]
[419159481,1774967440957,-1000.0,0.00010315,2]
[419159482,1774967440966,-1000.0,0.00011347,2]
[419159483,1774967440975,-244.0,0.00011347,2]
[419159484,1774967440985,-444.85366821,0.0001224,2]
[419159485,1774967440994,-1000.0,0.00012481,2]
[419159486,1774967441002,-492.0,0.00012481,2]
[419159487,1774967441010,-155.0,0.00012481,2]
[419159488,1774967441019,-1000.0,0.00013699,2]
[419159489,1774967441031,-444.0,0.00013699,2]
[419159490,1774967441041,-1000.0,0.0001373,2]
[419159491,1774967441052,-791.0,0.0001373,2]
[419159492,1774967441062,-555.0,0.0001373,2]
[419159493,1774967441071,-333.0,0.0001373,2]
[419159494,1774967441080,-1000.0,0.00015102,2]
[419159495,1774967441090,-1000.0,0.00015102,2]
[419159496,1774967441099,-155.0,0.00015102,2]
[419159497,1774967441109,-444.0,0.00015102,2]
[419159498,1774967441118,-222.0,0.00015102,2]
[419159499,1774967441128,-1000.0,0.00016613,2]
[419159500,1774967441140,-1000.0,0.00016613,2]
[419159501,1774967441149,-579.0,0.00016613,2]
[419159502,1774967441159,-166.0,0.00016613,2]
[419159503,1774967441168,-555.0,0.00016613,2]
[419159504,1774967441178,-1000.0,0.00018274,2]
[419159505,1774967441188,-194.0,0.00018274,2]
[419159506,1774967441199,-1504.2,0.000209,2]
[419159507,1774967441209,-1504.2,0.000219,2]
[419159508,1774967441218,-500.0,0.00022345,2]
[419159509,1774967441229,-521.08804885,0.00022893,2]
[419159510,1774967441240,-1504.2,0.000229,2]
[419159511,1774967441249,-270.83333333,0.00023,2]
[419159512,1774967441260,-440.0,0.00023475,2]
[419159513,1774967441270,-184.0,0.00023475,2]
[419159514,1774967441280,-915.134798,0.00023549,2]
[419159515,1774967441291,-8257.532731,0.00023737,2]
[419159516,1774967441300,-1504.2,0.000239,2]
[419159517,1774967441310,-156502.44382241,0.0002399,30]
[419159528,1774967446651,-20327.22644904,0.0002399,30]
[419159529,1774967446872,-16355.92195103,0.0002399,30]
[419159530,1774967446883,-9681.30088006,0.0002399,30]
[419159531,1774967446894,-3638.61113033,0.0002399,30]
[419159532,1774967446926,-661.22,0.0002399,30]
[419159544,1774967523116,1000.0,0.00013699,2]
[419159546,1774967546353,500.0,0.00035937,120]
[419159547,1774967856871,500.0,0.00035933,120]
[419159556,1774968507452,5756.6393809,0.00035934,120]
[419159613,1774968612103,1274.81380996,0.00035934,120]
[419159634,1774968631788,-1000.0,0.00013699,2]
[419159635,1774968631798,-1000.0,0.00023073,30]
[419159636,1774968631807,-367.824,0.00023565,2]
[419159637,1774968631817,-184.176,0.00023565,2]
[419159638,1774968631826,-440.0,0.00023565,2]
[419159639,1774968631836,-287.34005806,0.00023653,2]
[419159640,1774968631846,-500.0,0.00023773,2]
[419159641,1774968631854,-300.0,0.00023789,2]
[419159642,1774968631864,-46247.95338817,0.0002379,2]
[419159643,1774968631875,-6610.0,0.0002379,2]
[419159739,1774968637962,-9611.80131239,0.0002379,2]
[419159762,1774968643096,-6541.94212372,0.0002379,2]
[419159763,1774968643255,-3248.00000119,0.0002379,2]
[419159781,1774968646210,-6750.28712789,0.0002379,2]
[419159782,1774968646224,-7186.85492857,0.0002379,2]
[419159783,1774968736529,250.0,0.00035934,120]
[419159784,1774968739220,225.0,0.00035934,120]
[419159785,1774968744056,358.17,0.00035934,120]
[419159786,1774968950776,-1000.0,0.00013699,2]
[419159787,1774969144510,1000.0,0.00013699,2]
[419159788,1774969236118,5000.0,0.00035937,120]
[419159789,1774969302573,3100.0,0.00035937,120]
[419159790,1774969363345,767.63677301,0.00035937,120]
[419159791,1774969376557,-174.8538379,0.00022737,2]
[419159792,1774969376612,-2495.23035916,0.00022767,2]
[419159793,1774969405756,-174.8538379,0.00022767,2]
[419159794,1774969443197,2000.0,0.00035937,120]
[419159795,1774969613909,10000.0,0.00035936,120]
[419159806,1774969637969,250.0,0.00035936,120]
[419159816,1774969805336,3000.0,7.6e-05,2]
[419159817,1774969805360,2008.08,7.6e-05,2]
[419159818,1774969805383,1616.95,7.6e-05,2]
[419159850,1774969832351,-320.24175355,7.6e-05,2]
[419159851,1774969832364,-275.752,7.6e-05,2]
[419159853,1774969832402,-20698.95877522,7.6e-05,2]
[419159897,1774969838446,-52430.56568781,7.6e-05,2]
[419159898,1774969838458,-451.235,7.6e-05,2]
[419159922,1774969840847,-5180.09590182,7.6e-05,2]
[419160011,1774969847844,-20094.79777726,7.6e-05,2]
[419160012,1774969848005,-1047.76194729,7.6e-05,2]
[419160013,1774969848017,-4854.24008988,7.6e-05,2]
[419160014,1774969848059,-15846.82761646,7.6e-05,2]
[419160025,1774969880250,153957.0,0.00035936,120]
[419160026,1774969937271,151.0,0.00035936,120]
[419160033,1774970485109,3771.38,0.00035974,120]
[419160187,1774971042044,-275.752,7.5e-05,2]
[419160188,1774971042055,-500.0,7.573e-05,2]
[419160189,1774971042065,-119058.93341951,7.6e-05,2]
[419160190,1774971042074,-300.0,7.751e-05,2]
[419160191,1774971042084,-300.0,7.751e-05,2]
[419160192,1774971042094,-300.0,7.751e-05,2]
[419160193,1774971042104,-300.0,7.751e-05,2]
[419160194,1774971042113,-300.0,7.751e-05,2]
[419160195,1774971042122,-300.0,7.751e-05,2]
[419160196,1774971042132,-300.0,7.751e-05,2]
[419160197,1774971042141,-300.0,7.751e-05,2]
[419160198,1774971042150,-300.0,7.751e-05,2]
[419160199,1774971042160,-300.0,7.751e-05,2]
[419160200,1774971042169,-300.0,7.751e-05,2]
[419160201,1774971042182,-300.0,7.751e-05,2]
[419160202,1774971042192,-300.0,7.751e-05,2]
[419160203,1774971042201,-300.0,7.751e-05,2]
[419160204,1774971042211,-300.0,7.751e-05,2]
[419160205,1774971042220,-600.0,7.751e-05,2]
[419160206,1774971042229,-504.96443852,8.121e-05,2]
[419160207,1774971042238,-720.0,8.526e-05,2]
[419160208,1774971042248,-864.0,9.379e-05,2]
[419160209,1774971042258,-1000.0,0.00010317,2]
[419160210,1774971042268,-1000.0,0.00011348,2]
[419160211,1774971042277,-244.0,0.00011348,2]
[419160212,1774971042287,-1000.0,0.00012483,2]
[419160213,1774971042296,-492.0,0.00012483,2]
[419160214,1774971042306,-1000.0,0.00013699,2]
[419160215,1774971042315,-1000.0,0.00013731,2]
[419160216,1774971042325,-791.0,0.00013731,2]
[419160217,1774971042334,-1000.0,0.0001496,2]
[419160218,1774971042344,-1000.0,0.00015104,2]
[419160219,1774971042353,-1000.0,0.00015104,2]
[419160220,1774971042363,-1000.0,0.00016615,2]
[419160221,1774971042373,-1000.0,0.00016615,2]
[419160223,1774971042382,-579.0,0.00016615,2]
[419160225,1774971042392,-9536.23820657,0.00018,2]
[419160226,1774971042402,-632.0,0.00018276,2]
[419160227,1774971042411,-304.0,0.00018403,2]
[419160229,1774971042420,-171.02315257,0.00019126,2]
[419160230,1774971042430,-214.04933899,0.00021267,2]
[419160231,1774971042440,-244.62781599,0.00021267,2]
[419160232,1774971042450,-381.84873152,0.00021267,2]
[419160233,1774971042459,-227.12236883,0.00021267,2]
[419160234,1774971042468,-259.56842152,0.00021267,2]
[419160235,1774971042477,-405.17008296,0.00021267,2]
[419160236,1774971042487,-158.32011016,0.00021685,60]
[419160237,1774971042496,-160.0,0.00022,4]
[419160238,1774971042505,-500.0,0.00022222,2]
[419160239,1774971042514,-500.0,0.00022222,2]
[419160240,1774971042523,-500.0,0.00022222,2]
[419160241,1774971042533,-581.36831077,0.00022222,2]
[419160242,1774971042542,-247.495881,0.00022496,2]
[419160243,1774971042550,-1372.194568,0.00022557,2]
[419160244,1774971042559,-270.83333333,0.00023,2]
[419160245,1774971042569,-500.0,0.00023513,2]
[419160246,1774971042578,-2398.4119403,0.00023513,2]
[419160247,1774971042588,-150.217,0.00023565,2]
[419160248,1774971042598,-404.620741,0.00023565,2]
[419160249,1774971042607,-462.423704,0.00023565,2]
[419160250,1774971042616,-721.81450046,0.00023565,2]
[419160251,1774971042625,-259.24423617,0.00023565,2]
[419160252,1774971042634,-296.27912705,0.00023565,2]
[419160253,1774971042644,-346.0,0.000236,8]
[419160254,1774971042653,-151.0,0.000236,9]
[419160255,1774971042662,-151.0,0.000236,9]
[419160256,1774971042672,-440.0,0.00023611,2]
[419160257,1774971042682,-735.824,0.00023611,2]
[419160258,1774971042691,-184.176,0.00023611,2]
[419160259,1774971042700,-2000.0,0.00023689,7]
[419160260,1774971042709,-462.47319988,0.0002384,2]
[419160261,1774971042719,-500.0,0.00024061,2]
[419160262,1774971042728,-2487.15318209,0.00024061,2]
[419160263,1774971042737,-500.0,0.000243,2]
[419160265,1774971042746,-500.0,0.0002436,2]
[419160266,1774971042756,-500.0,0.0002436,2]
[419160267,1774971042765,-151.0,0.00024362,2]
[419160268,1774971042774,-554.04369076,0.00024373,2]
[419160269,1774971042783,-500.0,0.00024373,2]
[419160270,1774971042793,-500.0,0.00024373,2]
[419160271,1774971042802,-500.0,0.00024373,2]
[419160272,1774971042811,-500.0,0.00024373,2]
[419160273,1774971042820,-500.0,0.00024373,2]
[419160274,1774971042829,-500.0,0.00024373,2]
[419160275,1774971042838,-500.0,0.00024373,2]
[419160276,1774971042848,-500.0,0.00024373,2]
[419160277,1774971042857,-500.0,0.00024373,2]
[419160278,1774971042865,-500.0,0.00024373,2]
[419160279,1774971042874,-500.0,0.00024373,2]
[419160280,1774971042883,-406.66904667,0.00024373,2]
[419160281,1774971042893,-500.0,0.00024373,2]
[419160282,1774971042906,-500.0,0.00024373,2]
[419160283,1774971042919,-151.0,0.00024373,2]
[419160284,1774971042931,-151.0,0.00024373,2]
[419160285,1774971042945,-321.206625,0.00024373,2]
[419160286,1774971042957,-321.206625,0.00024373,2]
[419160287,1774971042968,-321.206625,0.00024373,2]
[419160289,1774971042978,-151.0,0.00024375,2]
[419160290,1774971042989,-151.0,0.00024375,2]
[419160291,1774971043001,-300.0,0.00024375,2]
[419160292,1774971043013,-300.0,0.00024375,2]
[419160293,1774971043024,-300.0,0.00024375,2]
[419160294,1774971043038,-300.0,0.00024375,2]
[419160295,1774971043050,-271.241947,0.00024375,2]
[419160296,1774971043064,-151.0,0.00024375,2]
[419160297,1774971043077,-271.241947,0.00024375,2]
[419160298,1774971043089,-271.241947,0.00024375,2]
[419160299,1774971043103,-271.241947,0.00024375,2]
[419160300,1774971043116,-167.829604,0.00024375,2]
[419160301,1774971043129,-271.450196,0.00024375,2]
[419160302,1774971043141,-271.450196,0.00024375,2]
[419160303,1774971043152,-151.0,0.00024375,2]
[419160304,1774971043165,-271.450196,0.00024375,2]
[419160305,1774971043177,-152.263475,0.00024375,2]
[419160306,1774971043190,-271.450196,0.00024375,2]
[419160307,1774971043202,-406.980843,0.00024375,2]
[419160308,1774971043213,-406.980843,0.00024375,2]
[419160309,1774971043224,-406.980843,0.00024375,2]
[419160310,1774971043234,-406.980843,0.00024375,2]
[419160311,1774971043245,-151.0,0.00024375,2]
[419160312,1774971043258,-193.69,0.00024375,2]
[419160313,1774971043269,-151.0,0.00024375,2]
[419160315,1774971043282,-151.0,0.00024375,2]
[419160316,1774971043297,-151.0,0.00024375,2]
[419160317,1774971043309,-218.78827812,0.00024375,2]
[419160318,1774971043322,-644.38690357,0.00024375,2]
[419160319,1774971043335,-500.0,0.00024375,2]
[419160320,1774971043347,-500.0,0.00024472,2]
[419160321,1774971043360,-2000.0,0.0002459,7]
[419160322,1774971043373,-1000.0,0.000246,2]
[419160323,1774971043387,-167.49933598,0.000246,7]
[419160324,1774971043399,-151.0,0.000246,2]
[419160325,1774971043412,-151.0,0.000246,2]
[419160326,1774971043425,-240.36526,0.00024609,2]
[419160327,1774971043436,-500.0,0.00024609,2]
[419160328,1774971043447,-2579.17784983,0.00024609,2]
[419160329,1774971043459,-151.0,0.00024658,2]
[419160330,1774971043470,-151.0,0.00024658,2]
[419160331,1774971043481,-151.0,0.00024658,2]
[419160332,1774971043492,-1000.0,0.00024848,2]
[419160333,1774971043505,-1504.2,0.000249,2]
[419160334,1774971043517,-250.0,0.00024904,6]
[419160335,1774971043528,-251.59,0.00024904,6]
[419160336,1774971043538,-1000.0,0.00024921,2]
[419160337,1774971043549,-151.875933,0.00024921,2]
[419160338,1774971043561,-321.206625,0.00024921,2]
[419160339,1774971043573,-321.206625,0.00024921,2]
[419160340,1774971043586,-321.206625,0.00024921,2]
[419160341,1774971043598,-200.0,0.00025,5]
[419160342,1774971043610,-1840.0,0.00025,14]
[419160343,1774971043621,-160.0,0.00025099,2]
[419160344,1774971043633,-151.0,0.00025157,2]
[419160345,1774971043644,-151.0,0.00025157,2]
[419160346,1774971043656,-262.75506,0.00025157,2]
[419160347,1774971043668,-271.241947,0.00025157,2]
[419160348,1774971043678,-157.393027,0.00025157,2]
[419160349,1774971043688,-271.241947,0.00025157,2]
[419160350,1774971043700,-271.241947,0.00025157,2]
[419160351,1774971043710,-271.241947,0.00025157,2]
[419160352,1774971043721,-271.450196,0.00025157,2]
[419160353,1774971043732,-271.450196,0.00025157,2]
[419160354,1774971043743,-151.0,0.00025157,2]
[419160355,1774971043754,-271.450196,0.00025157,2]
[419160356,1774971043765,-271.450196,0.00025157,2]
[419160357,1774971043776,-406.980843,0.00025157,2]
[419160358,1774971043788,-406.980843,0.00025157,2]
[419160359,1774971043799,-406.980843,0.00025157,2]
[419160360,1774971043810,-406.980843,0.00025157,2]
[419160361,1774971043821,-151.0,0.00025157,2]
[419160362,1774971043832,-151.0,0.00025157,2]
[419160363,1774971043843,-151.0,0.00025157,2]
[419160364,1774971043854,-151.0,0.00025157,2]
[419160365,1774971043865,-151.0,0.00025157,2]
[419160366,1774971043876,-500.0,0.00025157,2]
[419160367,1774971043886,-2674.60743027,0.00025157,2]
[419160368,1774971043897,-233.292,0.00025207,9]
[419160369,1774971043908,-1001.223012,0.00025396,2]
[419160370,1774971043919,-1000.0,0.00025468,2]
[419160371,1774971043931,-2000.0,0.00025492,7]
[419160372,1774971043942,-151.0,0.00025705,2]
[419160373,1774971043954,-151.0,0.00025705,2]
[419160374,1774971043965,-300.0,0.00025705,2]
[419160375,1774971043976,-300.0,0.00025705,2]
[419160376,1774971043988,-300.0,0.00025705,2]
[419160377,1774971043999,-300.0,0.00025705,2]
[419160378,1774971044011,-500.0,0.00025705,2]
[419160379,1774971044022,-2773.56790519,0.00025705,2]
[419160380,1774971044034,-1504.2,0.000259,2]
[419160381,1774971044046,-321.206625,0.00026016,2]
[419160382,1774971044057,-321.206625,0.00026016,2]
[419160383,1774971044069,-321.206625,0.00026016,2]
[419160384,1774971044080,-500.0,0.00026253,2]
[419160385,1774971044092,-2000.0,0.00026394,7]
[419160386,1774971044103,-475.0,0.00026575,120]
[419160387,1774971044115,-440.0,0.00026611,2]
[419160388,1774971044126,-184.0,0.00026611,2]
[419160389,1774971044137,-163.527613,0.00026895,14]
[419160390,1774971044148,-160.0,0.00026895,14]
[419160391,1774971044159,-328.685058,0.00026895,14]
[419160392,1774971044170,-497.370116,0.00026895,14]
[419160393,1774971044181,-286.17332,0.00026895,14]
[419160394,1774971044192,-1504.2,0.000269,2]
[419160395,1774971044203,-165.0,0.000269,21]
[419160396,1774971044213,-151.0,0.000269,2]
[419160397,1774971044349,-151.0,0.000269,2]
[419160398,1774971044360,-190.908009,0.000269,2]
[419160399,1774971044370,-151.0,0.000269,2]
[419160400,1774971044380,-151.0,0.000269,2]
[419160401,1774971044389,-12017.63679066,0.00026928,2]
[419160402,1774971044399,-151.0,0.00026928,2]
[419160403,1774971044408,-151.0,0.00026928,2]
[419160404,1774971044418,-271.241947,0.00026928,2]
[419160405,1774971044427,-271.241947,0.00026928,2]
[419160406,1774971044436,-271.241947,0.00026928,2]
[419160407,1774971044446,-271.241947,0.00026928,2]
[419160408,1774971044456,-271.450196,0.00026928,2]
[419160409,1774971044466,-271.450196,0.00026928,2]
[419160410,1774971044475,-151.0,0.00026928,2]
[419160411,1774971044485,-271.450196,0.00026928,2]
[419160412,1774971044495,-271.450196,0.00026928,2]
[419160413,1774971044504,-406.980843,0.00026928,2]
[419160414,1774971044514,-406.980843,0.00026928,2]
[419160415,1774971044523,-406.980843,0.00026928,2]
[419160416,1774971044532,-406.980843,0.00026928,2]
[419160417,1774971044542,-151.0,0.00026928,2]
[419160418,1774971044552,-321.206625,0.00026928,2]
[419160419,1774971044562,-321.206625,0.00026928,2]
[419160420,1774971044571,-321.206625,0.00026928,2]
[419160421,1774971044581,-500.0,0.00026973,2]
[419160422,1774971044590,-555.0126511,0.00026973,2]
[419160423,1774971044601,-301.61121715,0.00026973,2]
[419160424,1774971044610,-500.0,0.00026973,2]
[419160425,1774971044620,-500.0,0.00026973,2]
[419160426,1774971044629,-500.0,0.00026973,2]
[419160427,1774971044639,-500.0,0.00026973,2]
[419160428,1774971044648,-500.0,0.00026973,2]
[419160429,1774971044658,-500.0,0.00026973,2]
[419160430,1774971044667,-500.0,0.00026973,2]
[419160431,1774971044676,-500.0,0.00026973,2]
[419160432,1774971044686,-500.0,0.00026973,2]
[419160433,1774971044695,-500.0,0.00026973,2]
[419160434,1774971044705,-310.7149812,0.00026973,2]
[419160435,1774971044714,-500.0,0.00026973,2]
[419160436,1774971044724,-151.0,0.00026973,2]
[419160437,1774971044733,-151.0,0.00026973,2]
[419160438,1774971044743,-300.0,0.00026973,2]
[419160439,1774971044753,-300.0,0.00026973,2]
[419160440,1774971044762,-300.0,0.00026973,2]
[419160441,1774971044771,-300.0,0.00026973,2]
[419160442,1774971044780,-151.0,0.00026973,2]
[419160443,1774971044790,-151.0,0.00026973,2]
[419160444,1774971044800,-2000.0,0.00027295,7]
[419160445,1774971044810,-270.83333333,0.00027295,7]
[419160446,1774971044819,-1300.0,0.000273,2]
[419160447,1774971044828,-632894.3052778,0.000273,3]
[419160448,1774971044843,-547.644,0.000273,3]
[419160449,1774971044868,-414.12432266,0.000273,3]
[419160450,1774971044880,-4540.76310372,0.000273,3]
[419160451,1774971044930,-1021.47584788,0.000273,3]
[419160452,1774971044945,-890.000002,0.000273,3]
[419160453,1774971045005,-791.99855307,0.000273,3]
[419160488,1774971046698,-2825.79283542,0.000273,3]
[419160490,1774971046709,-264.06,0.000273,3]
[419160492,1774971046921,-274.17,0.000273,3]
[419160494,1774971138939,302.0,0.00035974,120]
[419160497,1774971347223,-475.0,0.00027344,120]
[419160498,1774971347255,-1275.0,0.00029,120]
[419160499,1774971347284,-502829.30403498,0.00029999,120]
[419160500,1774971347316,-2000.0,0.000309,120]
[419160501,1774971347342,-2000.0,0.000319,120]
[419160502,1774971347367,-161.0,0.00032,120]
[419160503,1774971347392,-1000.0,0.00032,120]
[419160504,1774971347419,-2000.0,0.00032876,120]
[419160505,1774971573936,2000.0,0.00032876,120]
[419160532,1774971737740,29541.0,0.00032,120]
[419160533,1774971756647,2000.0,0.00032876,120]
[419160534,1774971915975,475.0,0.00032876,120]
[419160535,1774971917331,475.0,0.00032876,120]
[419160536,1774971917570,475.0,0.00032876,120]
[419160537,1774971918731,475.0,0.00032876,120]
[419160538,1774971919723,475.0,0.00032876,120]
[419160539,1774971920059,475.0,0.00032876,120]
[419160540,1774971920355,475.0,0.00032876,120]
[419160541,1774971920650,475.0,0.00032876,120]
[419160542,1774971920937,475.0,0.00032876,120]